Workbook

Sheet Final Budget 14-15
B3: Door Step School & Asha Silicon Valley
B4: Educational Activity Center
B5: Estimated Budget (10 Centers) April 2014-March 2015
B6: Sr. No. | C6: Particulars | D6: Rate/ Cost per Month | E6: No. of Months | F6: No. of Persons | G6: Total in Rs.
B7: I | C7: MANAGEMENT COST
B8: 1 | C8: Management Salary | D8: 8001 | E8: 12 | G8: =D8*E8 -> 96012
C9: Total of I | G9: =G8 -> 96012
B10: II | C10: STAFF WELFARE
B11: 1 | C11: Mediclaim of staff (Part Payment)
C12: Coordinators | D12: =900*50% -> 450 | F12: 1 | G12: =D12*F12 -> 450
C13: Supervisor | D13: =900*50% -> 450 | F13: 2 | G13: =D13*F13 -> 900
C14: Teachers | D14: =900*75% -> 675 | F14: 24 | G14: =D14*F14 -> 16200
B15: 2 | C15: Staff Event | D15: 300 | F15: 28 | G15: =D15*F15 -> 8400
C16: Total of IV | G16: =G12+G13+G14+G15 -> 25950
B17: III | C17: PROGRAM EXPENSES
B18: 1 | C18: Teachers Salaries | D18: 5849 | E18: 12 | F18: 24 | G18: =D18*E18*F18 -> 1684512
B19: 2 | C19: Supervisors Salaries | D19: 10064 | E19: 12 | F19: 2 | G19: =D19*E19*F19 -> 241536
B20: 3 | C20: Coordinator Salaries | D20: 14859 | E20: 12 | F20: 1 | G20: =D20*E20*F20 -> 178308
B21: 4 | C21: Teaching & Educational Material | D21: 20 | E21: 12 | F21: 500 | G21: =D21*E21*F21 -> 120000
B22: 5 | C22: Picnic/Events | D22: 60 | F22: 500 | G22: =D22*F22 -> 30000
B23: 6 | C23: Support Activities/ Miscellaneous | D23: 20 | F23: 500 | G23: =D23*F23 -> 10000
B24: 7 | C24: Transport | D24: 275 | E24: 10 | F24: 100 | G24: =D24*E24*F24 -> 275000
C25: Total - III | G25: =SUM(G18:G24) -> 2539356
C26: Total of I+ II+III | G26: =G9+G16+G25 -> 2661318
B27: IV | C27: ADMINISTRATIVE EXPENSES
B28: 1 | C28: Telephone, stationary, postage, admin staff and other organizational costs @ approx 10% of Total of I+ II+III | G28: =G26*10% -> 266131.8
C29: Grand Total I+ II+III+IV( Rounded) | G29: =CEILING(G26+G28,100) -> 2927500
C30: Funding by Builders (40% of total cost) | G30: =G29*40% -> 1171000
C31: Funding Requested ( 60% of total cost) | G31: =CEILING(G29-G30,1000) -> 1757000
B33: Cost Per Site / Month ( rounded) | F33: Rs. | G33: =G29/10/12 -> 24395.83333
B34: Cost Per Child Per Month | F34: Rs. | G34: =G33/50 -> 487.9166667
C36: Approved Budget for Last Year | D36: 2036000
C37: Requested Budget this year | D37: =G31 -> 1757000
C38: Difference | D38: =D37-D36 -> -279000
C39: Budget decreased by (in %) | D39: =100*D38/D37 -> -15.87933978
B42: Notes:
B43: a. | C43: Transport Cost: | D43: School transport remains to be pivotal activity for school going children of the construction sites. All our efforts of convincing parents and enrolling children into schools sometimes seem futile if we can not provide them transport. Without a safe and regular school transport facility, the children of the construction sites find it difficult to get to the schools and then they eventually drop out.
B44: b. | C44: Staff Event: | D44: We organize Annual Day program for staff once a year. In addition to this we also organize cluster level review meetings for our entire project to access the progress of each project. Staff event budget head cost include the cost involved for this activity.
B45: c. | C45: Support Activities/ Miscellaneous: | D45: When we run classes we provide some material which is necessary to the children of that class e.g. a toilet is not provided by the builder, we need to provide a mobile toilet for the children and teachers on the construction sites, Housekeeping material etc.
B46: d. | C46: Picnic and Events: | D46: We organize picnic at once in year, We also organise events like Diwali, Makarsankrat, Republic Day, Independence Day etc.
B47: e. | C47: No. of children: | D47: Assumption - Per site 50 children
